{"text_format":"2","workbook":"xlsx","n_sheets":1,"sheets":["Лист1"],"not_rendered":{"charts":0,"images":0,"macros":0,"external_links":0,"defined_names":0,"comments":0,"pivot_tables":0},"unopened":[],"bounds":{"document_bytes":16777216,"sheet_cells":100000,"run_cost":"one","rows_first":2000,"rows_last":500,"rows_between":2000,"halvings":0,"cell_chars":16384,"cell_head_chars":4096},"cells_cut":0,"cells_raw":0,"read":"whole","date_system":"1900"}

{"sheet":"Лист1","index":0,"n_rows":38,"n_cols":5,"rows_kept":38,"cut":false,"hidden":false,"merged":[]}
["Организуем детский праздник"]
[]
["Что надо оплатить","Единица","Стоимость за единицу","Количество","Общая стоимость"]
["Аренда зала","Час",2500.0,5.0,{"$f":"C4*D4","v":12500}]
[]
["Оформление зала"]
["Бумажные шары","Упаковка",594.0,9.0,{"$f":"C7*D7","v":5346}]
["Шарики воздушные ","Упаковка",null,null,0]
["Ленты для стульев","Упаковка",423.0,6.0,2538]
["Скатерти",null,null,null,0]
[]
["Услуги аниматоров","Час",1200.0,3.0,{"$f":"C12*D12","v":3600}]
[]
["Подарки"]
["Детям","Штука",279.0,20.0,{"$f":"C15*D15","v":5580}]
["Воспитателям","Штука",600.0,7.0,4200]
[]
["Угощение детям"]
["Лимонад ","Литры",4.0,null,{"$f":"C19*D19","v":0}]
["Печенье — готовим сами",null,null,null,0]
["Кексы — готовим сами",null,null,null,0]
["Пицца ",null,null,null,0]
[]
["Угощение воспитателям",null,null,null,{"$f":"C24*D24","v":0}]
["Кофе в дрип-пакетах",null,null,null,0]
["Шарлотка — готовим сами ",null,null,null,0]
["Безе — готовим сами",null,null,null,0]
[]
["Расходники",null,null,null,{"$f":"C29*D29","v":0}]
["Трубочки",null,null,null,0]
["Тарелки",null,null,null,0]
["Стаканчики",null,null,null,0]
["Салфетки влажные",null,null,null,0]
["Салфетки сухие",null,null,null,0]
[]
["Клининг после праздника","За услугу",1750.0,null,1750.0]
[]
["Итого",null,null,null,{"$f":"sum(E4:E36)","v":35514}]